bitfinex/quotes_ETHUSD_20240819
["timestamp","ask_amount","ask_price","bid_price","bid_amount"]
[1724090460554,6.16527,2610.3,2609.7,7.66357]
[1724090460752,6.16527,2610.3,2609.8,3.83161]
[1724090460921,2.3343,2610.3,2609.9,3.8315]
[1724090461254,2.3343,2610.3,2610.0,7.66273]
[1724090461415,2.3343,2610.3,2610.0,3.83134]
[1724090461931,2.3343,2610.3,2610.1,3.83127]
[1724090462127,2.3343,2610.3,2610.0,3.83134]
[1724090462317,2.3343,2610.3,2610.1,3.83119]
[1724090462514,2.3343,2610.3,2610.2,3.83112]
[1724090462725,2.3343,2610.3,2610.1,3.83126]
[1724090463226,2.3343,2610.3,2610.0,3.83132]
[1724090463645,2.3343,2610.3,2609.8,3.83163]
[1724090463850,6.78187,2610.3,2609.8,3.83163]
[1724090464480,3.83128,2610.1,2609.6,6.8319]
[1724090464661,2.4001,2610.0,2609.6,6.8319]
[1724090464882,2.4001,2610.0,2609.5,3.83213]
[1724090465086,3.83158,2609.9,2609.4,3.83215]
[1724090465399,2.4001,2610.0,2609.5,3.83201]
[1724090465564,2.4001,2610.0,2609.6,3.83193]
[1724090465767,2.4001,2610.0,2609.7,7.66352]
[1724090466098,2.4001,2610.0,2609.7,3.83173]
[1724090466394,2.4001,2610.0,2609.8,3.83158]
[1724090466595,2.4001,2610.0,2609.8,3.83171]
[1724090467097,2.4001,2610.0,2609.9,3.83156]
[1724090467442,2.4001,2610.0,2609.7,7.66347]
[1724090467604,2.4001,2610.0,2609.8,3.8317]
[1724090467900,2.4001,2610.0,2609.7,3.83173]
[1724090467901,2.4001,2610.0,2609.7,3.83185]
[1724090468198,6.23153,2610.0,2609.6,3.83198]
[1724090468382,3.83163,2609.9,2609.4,3.83219]
[1724090469393,6.23153,2610.0,2609.4,3.83219]
[1724090469394,3.83172,2609.8,2609.4,3.83219]
[1724090470202,2.3882,2609.7,2609.5,4.598601]
[1724090470369,3.83143,2610.0,2609.6,3.83193]
[1724090470370,6.21963,2610.0,2609.6,3.83193]
[1724090470980,6.21963,2610.0,2609.2,3.0]
[1724090471225,6.21963,2610.0,2609.5,3.83205]
[1724090471406,10.05113,2610.0,2609.5,3.83205]
[1724090471606,6.21963,2610.0,2609.6,3.83199]
[1724090472878,6.21963,2610.0,2609.5,3.83214]
[1724090473082,3.83164,2609.9,2609.4,3.83227]
[1724090473424,2.4696,2609.8,2609.5,3.83213]
[1724090476559,2.4696,2609.8,2609.4,3.83228]
[1724090477680,2.4696,2609.8,2609.3,3.83234]
[1724090477681,2.4696,2609.8,2609.5,7.66418]
[1724090477972,2.4696,2609.8,2609.6,3.83199]
[1724090478273,2.4696,2609.8,2609.5,4.598558]
[1724090479027,2.4696,2609.8,2609.5,8.430638]
[1724090479222,2.4696,2609.8,2609.4,3.83228]
[1724090480320,6.30135,2609.8,2609.4,3.83228]
[1724090480525,2.4696,2609.8,2609.6,3.83194]
[1724090480821,3.92405161,2610.1,2609.8,3.83164]
[1724090481134,3.92405161,2610.1,2609.7,7.66361]
[1724090481373,2.318,2610.1,2609.8,3.83168]
[1724090481536,3.92405161,2610.1,2609.8,3.83168]
[1724090481736,3.92405161,2610.1,2609.7,3.83178]
[1724090481937,2.3582,2609.9,2609.4,3.83218]
[1724090482140,1.60605161,2610.0,2609.3,3.83233]
[1724090482141,7.79619161,2609.7,2609.3,3.83233]
[1724090482359,3.96425161,2609.7,2609.3,7.66467]
[1724090482624,2.3582,2609.7,2609.3,3.83233]
[1724090483343,3.96425161,2609.7,2609.4,3.83223]
[1724090483549,1.60605161,2609.6,2609.3,3.83233]
[1724090483704,1.60605161,2609.6,2609.2,6.83257]
[1724090483913,7.79618161,2609.7,2609.2,6.83257]
[1724090484319,1.60605161,2609.6,2609.2,6.83257]
[1724090484844,1.60605161,2609.5,2609.2,6.83257]
[1724090485141,1.60605161,2609.5,2609.3,3.83244]
[1724090485487,1.60605161,2609.5,2609.3,7.66479]
[1724090485727,1.60605161,2609.6,2609.3,7.66479]
[1724090485933,1.60605161,2609.6,2609.3,3.83235]
[1724090486304,1.60605161,2609.5,2609.3,3.83235]
[1724090486506,1.60605161,2609.6,2609.5,3.83215]
[1724090486738,1.60605161,2609.7,2609.5,3.83215]
[1724090487142,4.3332749,2609.9,2609.6,3.83186]
[1724090487143,1.60605161,2609.8,2609.6,3.83186]
[1724090487344,1.60605161,2609.8,2609.5,3.83215]
[1724090487524,1.60605161,2609.7,2609.5,7.66423]
[1724090487712,2.01008796,2609.8,2609.6,3.832]
[1724090487924,1.60835585,2609.7,2609.6,3.832]
[1724090488127,1.60835585,2609.7,2609.6,8.430408]
[1724090488328,2.3249,2609.9,2609.8,7.66342]
[1724090488329,1.60835585,2609.9,2609.8,7.66342]
[1724090488511,8.94835585,2610.0,2609.9,3.83156]
[1724090489052,8.94835585,2610.0,2609.8,3.8317]
[1724090489195,1.60835585,2609.9,2609.8,3.8317]
[1724090489525,1.60835585,2609.9,2609.7,3.83185]
[1724090490746,1.60835585,2609.9,2609.6,3.83199]
[1724090490747,1.60835585,2609.8,2609.6,3.83199]
[1724090491303,1.60835585,2609.8,2609.7,3.83185]
[1724090491506,1.60835585,2609.9,2609.6,8.43027]
[1724090491742,3.98305585,2609.8,2609.6,3.83187]
[1724090492241,3.98305585,2609.8,2609.4,3.83219]
[1724090492398,1.60835585,2609.7,2609.5,3.0]
[1724090492598,4.38487102,2609.8,2609.5,3.0]
[1724090492599,3.98305585,2609.8,2609.5,6.83214]
[1724090493050,1.60835585,2609.7,2609.5,6.83214]
[1724090493457,4.38487102,2609.8,2609.5,6.83214]
[1724090493458,3.98305585,2609.8,2609.5,6.83214]
[1724090494705,1.60835585,2609.7,2609.5,6.83214]
[1724090495333,3.98305585,2609.8,2609.5,6.83214]
[1724090495539,1.60835585,2609.7,2609.5,3.83214]
[1724090495952,1.60835585,2609.7,2609.4,3.83228]
[1724090496176,2.3561,2609.4,2609.0,3.83283]
[1724090496301,2.3561,2609.4,2608.8,3.83317]
[1724090496302,5.44099979,2609.3,2608.8,3.83317]
[1724090496498,2.3561,2609.4,2608.6,3.83339]
[1724090496499,3.96462979,2609.1,2608.6,3.83339]
[1724090496705,1.60852979,2609.0,2608.6,3.83339]
[1724090497016,1.60852979,2609.0,2608.4,3.83365]
[1724090497017,1.60852979,2608.8,2608.4,3.83365]
[1724090497404,1.60852979,2608.8,2607.8,6.54969]
[1724090497405,3.97102979,2608.7,2608.1,3.83408]
[1724090497616,3.97102979,2608.7,2608.0,3.83425]
[1724090497961,3.97102979,2608.7,2608.2,3.83393]
[1724090498766,2.3625,2608.7,2608.2,3.83393]
[1724090499125,3.83349,2608.6,2608.0,11.323435]
[1724090499373,5.44201979,2608.6,2608.0,3.83424]
[1724090499569,3.83349,2608.6,2608.0,3.83421]
[1724090499773,3.97102979,2608.7,2608.1,3.83412]
[1724090500073,7.80437979,2608.7,2608.1,3.83412]
[1724090500449,3.83349,2608.6,2608.1,3.83412]
[1724090501568,2.3625,2608.7,2608.4,3.83369]
[1724090501923,2.3625,2608.7,2608.2,7.66789]
[1724090502427,2.3625,2608.7,2608.2,7.6679]
[1724090502772,2.3625,2608.7,2608.1,3.83418]
[1724090503076,5.48545177,2608.7,2608.1,3.83418]
[1724090503277,5.48545177,2608.7,2608.0,3.83425]
[1724090503278,2.3975,2608.5,2608.0,3.83425]
[1724090503484,2.3975,2608.4,2608.0,3.83425]
[1724090504022,2.3975,2608.4,2607.8,3.83454]
[1724090504023,3.83392,2608.3,2607.8,3.83454]
[1724090504263,2.3975,2608.2,2607.7,3.0]
[1724090504427,2.3975,2608.2,2607.7,3.8347]
[1724090504631,3.020642,2608.2,2607.7,3.8347]
[1724090505878,3.83451,2607.9,2607.4,3.83512]
[1724090506025,2.4243,2607.8,2607.4,3.83512]
[1724090506223,2.4243,2607.8,2607.5,3.0]
[1724090506571,6.25896,2607.8,2607.2,6.83543]
[1724090506734,6.25896,2607.8,2607.2,7.518973]
[1724090506937,3.83489,2607.7,2607.2,4.518973]
[1724090507140,2.4235,2607.6,2607.2,3.83543]
[1724090507776,3.83511,2607.5,2607.0,3.83572]
[1724090507943,6.25845,2607.6,2606.9,3.83593]
[1724090507944,6.27014,2607.4,2606.9,3.83593]
[1724090508125,6.27014,2607.4,2606.8,3.83609]
[1724090508126,3.83548,2607.3,2606.8,3.83609]
[1724090508465,3.83469,2607.8,2606.6,3.83633]
[1724090508466,2.3918,2607.1,2606.6,3.83629]
[1724090509277,2.4264,2606.9,2606.4,7.67322]
[1724090509573,2.4264,2606.9,2606.5,3.83643]
[1724090509925,2.4264,2606.9,2606.3,3.83671]
[1724090510125,2.4264,2606.9,2606.4,3.83662]
[1724090510673,2.4264,2606.9,2606.5,3.83655]
[1724090511176,2.4264,2606.9,2606.5,3.83648]
[1724090511329,6.88866,2606.9,2606.3,3.83677]
[1724090511669,6.26245,2606.9,2606.3,3.83677]
[1724090512028,3.83619,2606.8,2606.3,3.83677]
[1724090512853,6.26245,2606.9,2606.3,3.83677]
[1724090513069,6.26245,2606.9,2606.7,3.83624]
[1724090513070,2.4264,2606.9,2606.7,3.83624]
[1724090513474,2.4264,2606.9,2606.7,3.83618]
[1724090513772,2.4264,2606.9,2606.8,3.83612]
[1724090513974,2.4264,2606.9,2606.7,3.83618]
[1724090514678,3.83469,2607.8,2606.7,3.83618]
[1724090514679,9.7464,2607.5,2607.1,3.83556]
[1724090514828,2.4064,2607.5,2607.4,3.83523]
[1724090515026,2.4064,2607.5,2607.3,3.83538]
[1724090515227,2.4064,2607.5,2607.3,3.83529]
[1724090515429,9.7464,2608.1,2607.6,3.83494]
[1724090515667,2.4064,2608.1,2607.6,3.83494]
[1724090515975,2.4064,2608.1,2607.6,3.83481]
[1724090516180,7.34,2608.4,2607.7,0.07669637]
[1724090516332,9.7464,2608.4,2608.1,3.83417]
[1724090516555,7.34,2608.4,2608.1,3.83417]
[1724090517174,7.34,2608.4,2608.1,7.6683]
[1724090517377,7.34,2608.4,2608.1,3.83413]
[1724090517898,7.34,2608.4,2608.2,3.83397]
[1724090518194,7.34,2608.4,2607.6,3.0]
[1724090518195,3.83347,2608.6,2607.9,3.8344]
[1724090518395,3.83347,2608.6,2607.9,8.05225]
[1724090518596,10.75493082,2608.8,2607.7,3.8347]
[1724090518597,3.83394,2608.3,2607.7,3.8347]
[1724090518793,3.83387,2608.4,2607.7,3.8347]
[1724090518999,2.3505,2608.6,2607.9,3.83439]
[1724090519202,2.3505,2608.6,2608.1,3.83408]
[1724090519407,2.3505,2608.6,2608.3,3.8339]
[1724090519548,2.3505,2608.6,2608.3,3.83382]
[1724090519751,2.3757,2609.0,2608.5,3.83354]
[1724090520087,2.3757,2609.0,2608.3,0.383382]
[1724090520088,2.3757,2609.0,2608.8,3.83316]
[1724090520255,2.3757,2609.0,2608.5,3.83352]
[1724090520455,2.3757,2609.0,2608.2,3.83402]
[1724090520769,2.3757,2609.0,2608.5,3.83352]
[1724090520951,3.83326,2608.8,2608.1,3.83415]
[1724090521303,7.34,2609.1,2607.9,3.0]
[1724090521304,2.3075,2608.7,2608.4,3.83373]
[1724090521499,6.14095,2608.7,2608.1,3.83417]
[1724090521794,2.3075,2608.7,2608.3,3.83391]
[1724090522011,2.3075,2608.7,2608.3,4.217301]
[1724090522348,2.3075,2608.7,2608.3,4.217191]
[1724090522550,2.3075,2608.7,2608.3,3.8338]
[1724090522795,2.3075,2608.7,2608.6,7.66694]
[1724090522991,2.3075,2608.7,2608.6,3.83347]
[1724090523496,7.34,2609.1,2608.6,3.83347]
[1724090523497,2.4801,2609.0,2608.6,3.83347]
[1724090523818,2.4801,2609.0,2608.7,3.83332]
[1724090523948,2.4801,2609.0,2608.1,6.28397]
[1724090524151,6.31306,2609.0,2608.4,3.83369]
[1724090524503,2.4801,2609.0,2608.5,3.83353]
[1724090525004,2.4801,2609.0,2608.4,3.83369]
[1724090525005,2.4801,2609.0,2608.4,3.83365]
[1724090525164,2.4801,2609.0,2608.0,3.8343]
[1724090525165,3.83337,2608.7,2608.0,3.83428]
[1724090525556,2.3561,2608.8,2608.3,3.8338]
[1724090525751,2.3561,2608.8,2608.4,3.83376]
[1724090526150,6.18928,2608.8,2608.3,3.83389]
[1724090526395,2.3561,2608.8,2608.3,3.8339]
[1724090526694,6.18928,2608.8,2608.3,3.8339]
[1724090527551,3.83333,2608.7,2608.0,3.83424]
[1724090527782,3.83333,2608.7,2608.2,3.83404]
[1724090527969,3.83333,2608.7,2608.2,7.66802]
[1724090528179,3.83333,2608.7,2608.2,3.83398]
[1724090528382,3.83333,2608.7,2608.2,7.66796]
[1724090528698,3.83333,2608.7,2608.2,3.83398]
[1724090528996,2.3561,2608.8,2608.4,3.83376]
[1724090529312,6.18929,2608.8,2608.3,3.8339]
[1724090530387,2.3561,2608.8,2608.6,3.83339]
[1724090530697,2.3561,2608.8,2608.4,7.66736]
[1724090530879,2.3561,2608.8,2608.4,3.83367]
[1724090531203,2.3561,2608.8,2608.6,3.83346]
[1724090531533,2.3561,2608.8,2608.4,4.30438817]
[1724090531662,2.3561,2608.8,2608.4,3.83367]
[1724090532069,6.18929,2608.8,2608.4,3.83367]
[1724090532806,6.18929,2608.8,2608.2,3.83396]
[1724090532965,6.18929,2608.8,2608.2,3.83405]
[1724090532966,3.83355,2608.6,2608.2,3.83405]
[1724090534409,6.808289,2608.8,2608.4,3.83375]
[1724090534410,6.18929,2608.8,2608.4,3.83375]
[1724090535023,6.18929,2608.8,2608.3,3.83389]
[1724090535228,2.3561,2608.8,2608.5,3.83361]
[1724090535771,3.83358,2608.6,2608.1,3.83412]
[1724090535966,2.4385,2608.5,2608.1,3.83412]
[1724090536198,3.83378,2608.4,2608.0,3.83421]
[1724090536671,6.2722,2608.5,2607.8,3.83455]
[1724090536869,2.4385,2608.2,2607.6,3.83483]
[1724090537115,3.83427,2608.1,2607.7,3.0]
[1724090537267,3.83427,2608.1,2607.7,6.83479]
[1724090537473,7.66855,2608.1,2607.7,3.0]
[1724090537828,7.66855,2608.1,2607.2,3.83542]
[1724090537829,3.83471,2607.8,2607.2,3.83542]
[1724090538028,3.83471,2607.8,2607.3,3.83531]
[1724090538329,3.83482,2607.7,2607.3,3.83531]
[1724090538668,3.83482,2607.7,2607.2,3.83542]
[1724090538669,2.2796,2607.5,2607.2,3.83542]
[1724090538871,2.2796,2607.5,2607.3,3.83528]
[1724090539895,2.2796,2607.5,2607.4,3.83523]
[1724090541458,2.2796,2607.5,2607.2,3.83551]
[1724090541995,2.2796,2607.5,2607.1,3.83564]
[1724090542450,2.2796,2607.5,2607.1,7.67122]
[1724090542651,2.2796,2607.5,2607.1,3.83558]
[1724090543514,2.2796,2607.5,2607.1,7.67119]
[1724090543727,2.2796,2607.5,2607.2,3.83553]
[1724090544096,2.2796,2607.5,2607.1,3.83558]
[1724090544097,6.11469,2607.5,2607.1,3.83566]
[1724090544291,6.11469,2607.5,2606.9,3.83584]
[1724090544292,2.4889,2607.4,2606.9,3.83584]
[1724090544497,2.4889,2607.4,2607.0,3.83581]
[1724090544498,6.3242,2607.4,2607.0,3.83581]
[1724090544729,2.4889,2607.4,2607.0,3.83581]
[1724090545848,2.4889,2607.4,2606.9,3.83588]
[1724090546031,3.83549,2607.3,2606.8,3.83611]
[1724090546245,2.3944,2606.9,2606.4,3.0]
[1724090546559,6.23039,2606.9,2606.4,3.83658]
[1724090546763,3.83595,2607.0,2605.7,0.1332407]
[1724090546764,6.23068,2606.7,2605.7,0.1332407]
[1724090546906,3.83647,2606.6,2606.1,3.83711]
[1724090547410,3.83647,2606.6,2605.7,3.9709507]
[1724090547411,3.83692,2606.3,2605.7,0.1332407]
[1724090547647,7.67389,2606.3,2605.7,3.9709007]
[1724090547845,3.83701,2606.2,2605.7,3.9709007]
[1724090548345,3.83701,2606.2,2605.8,3.83759]
[1724090548967,3.83685,2606.3,2605.8,7.67498]
[1724090549168,3.83685,2606.3,2605.8,3.83748]
[1724090549368,3.83722,2606.1,2605.7,0.1332407]
[1724090549514,3.83722,2606.1,2605.7,3.9709707]
[1724090549714,6.2757,2606.2,2605.7,3.9709707]
[1724090550160,2.4387,2606.2,2605.9,3.83733]
[1724090550367,2.4387,2606.2,2605.9,3.83732]
[1724090551215,2.4387,2606.2,2606.0,3.83724]
[1724090551410,3.83657,2606.5,2606.3,3.83685]
[1724090551411,2.4387,2606.5,2606.3,3.83685]
[1724090551911,2.4387,2606.5,2606.2,3.83699]
[1724090552345,2.4387,2606.5,2606.0,0.767456]
[1724090552674,2.4387,2606.5,2605.7,0.1332407]
[1724090552675,2.4387,2606.5,2606.2,3.83698]
[1724090552813,2.4387,2606.5,2606.3,3.83676]
[1724090553966,2.4372,2606.9,2605.9,2.3139]
[1724090554115,2.4372,2606.9,2606.8,3.83612]
[1724090554320,2.4372,2606.9,2606.7,3.83623]
[1724090554554,2.4372,2606.9,2606.4,6.8366]
[1724090554872,6.2732,2606.9,2606.4,6.8366]
[1724090555216,2.4372,2606.9,2606.4,6.8366]
[1724090555459,2.4372,2606.9,2606.5,3.83647]
[1724090556079,2.4372,2606.9,2606.6,3.83638]
[1724090556365,2.4372,2606.9,2606.4,6.8366]
[1724090556366,6.27322,2606.9,2606.4,6.8366]
[1724090556689,3.83657,2606.5,2605.9,3.83738]
[1724090556818,2.4806,2606.4,2606.0,3.8372]
[1724090557331,2.4806,2606.4,2605.7,0.1332407]
[1724090557332,3.83692,2606.3,2605.8,3.83749]
[1724090557534,6.31731,2606.4,2605.9,3.83737]
[1724090558243,6.31731,2606.4,2606.0,3.83728]
[1724090558637,6.31731,2606.4,2605.9,3.83743]
[1724090559535,6.949041,2606.4,2605.9,3.83743]
[1724090559739,6.14432,2606.3,2605.9,3.83742]
[1724090559942,2.3074,2606.3,2606.0,3.83717]
[1724090560122,3.83657,2606.5,2606.4,7.6734]
[1724090560123,2.3074,2606.5,2606.4,7.6734]
[1724090560327,2.3074,2606.5,2606.4,3.8367]
[1724090561972,2.3074,2606.5,2606.4,7.6734]
[1724090562138,2.3074,2606.5,2606.4,8.44074]
[1724090562342,2.3074,2606.5,2606.4,4.60404]
[1724090562589,2.3074,2606.5,2606.4,3.8367]
[1724090563094,2.2574,2606.5,2606.4,3.8367]
[1724090563494,2.2574,2606.5,2606.3,3.83684]
[1724090564399,7.34,2606.7,2606.5,3.83651]
[1724090564791,7.34,2606.7,2606.6,3.83641]
[1724090564950,7.34,2606.7,2606.3,3.83678]
[1724090565280,7.34,2606.7,2606.2,3.83698]
[1724090565281,11.17627,2606.7,2606.2,3.83698]
[1724090565514,11.17627,2606.7,2606.1,3.83706]
[1724090565515,12.677506,2606.7,2606.1,3.83706]
[1724090565717,3.8367,2606.5,2606.0,3.0]
[1724090565878,7.67296,2606.6,2606.1,3.83705]
[1724090566078,6.30676,2606.5,2606.1,3.83705]
[1724090566477,2.4702,2606.5,2606.1,3.83705]
[1724090566981,2.4702,2606.5,2606.2,3.83698]
[1724090567322,2.4702,2606.5,2606.3,3.83685]
[1724090567474,2.4503,2606.8,2606.6,3.83634]
[1724090569836,2.4503,2606.8,2606.7,3.83626]
[1724090570529,2.4084,2607.1,2606.8,3.83608]
[1724090571841,7.34,2607.5,2606.5,0.767302]
[1724090572048,2.3591,2607.4,2606.7,3.83616]
[1724090572179,2.3591,2607.4,2606.5,3.0]
[1724090572412,2.3463,2607.8,2607.0,3.83578]
[1724090572631,2.3463,2607.8,2607.4,3.83514]
[1724090576535,2.3463,2607.8,2607.6,3.83491]
[1724090576785,23.33416,2608.2,2607.6,3.83484]
[1724090576931,2.3463,2608.0,2607.7,3.83479]
[1724090577750,2.3463,2608.0,2607.7,7.66951]
[1724090577969,7.34,2608.2,2607.9,3.83441]
[1724090578131,7.34,2608.2,2607.9,3.83443]
[1724090578331,7.34,2608.2,2607.9,7.66885]
[1724090578575,7.34,2608.2,2607.9,3.83442]
[1724090578777,7.34,2608.2,2608.0,3.83435]
[1724090579073,7.34,2608.2,2608.1,3.8342]
[1724090579427,7.34,2608.2,2607.9,4.601312]
[1724090580179,7.34,2608.2,2607.9,3.8344]
[1724090580880,7.34,2608.2,2607.7,3.83474]
[1724090581078,7.34,2608.2,2607.6,3.8348]
[1724090581286,7.34,2608.2,2607.9,3.83449]
[1724090582378,7.34,2608.2,2607.4,3.83521]
[1724090582379,7.34,2608.2,2608.1,7.6684]
[1724090582680,7.34,2608.2,2608.1,8.43524]
[1724090583381,7.34,2608.2,2608.1,4.60104]
[1724090583548,7.34,2608.2,2608.1,3.8342]
[1724090583753,2.2616,2608.5,2608.1,3.8342]
[1724090584477,2.2616,2608.5,2608.2,3.83396]
[1724090584684,2.2616,2608.5,2608.3,3.83381]
[1724090584982,2.2616,2608.5,2608.4,3.83376]
[1724090585369,2.2616,2608.5,2608.2,3.83404]
[1724090585569,2.2616,2608.5,2608.1,3.83408]
[1724090585880,7.438727,2608.5,2608.1,3.83408]
[1724090586076,3.605107,2608.5,2608.1,3.83408]
[1724090586588,2.2616,2608.5,2608.1,3.83408]
[1724090586884,6.09527,2608.5,2608.1,3.83408]
[1724090587397,2.2616,2608.5,2608.1,3.83408]
[1724090587540,3.83389,2608.4,2607.9,3.83438]
[1724090587738,2.4541,2608.3,2607.7,3.8347]
[1724090588023,7.66835,2608.2,2607.7,3.8347]
[1724090588178,3.83442,2608.0,2607.5,3.83498]
[1724090588341,2.4541,2607.9,2607.5,3.83498]
[1724090588672,2.4541,2607.9,2607.7,3.83479]
[1724090589179,2.4541,2607.9,2607.6,3.83492]
[1724090589396,2.4541,2608.2,2607.9,3.83442]
[1724090590090,2.4541,2608.2,2608.0,3.83431]
[1724090590603,7.34,2608.3,2608.1,3.8342]
[1724090590755,2.3637,2608.4,2607.6,3.383492]
[1724090590952,2.3637,2608.4,2608.1,3.83414]
[1724090591152,6.19748,2608.4,2607.8,3.83463]
[1724090591587,3.83407,2608.2,2607.8,3.83463]
[1724090593778,2.3637,2608.4,2608.0,3.83427]
[1724090593976,2.3637,2608.4,2608.2,3.83394]
[1724090594174,2.3637,2608.4,2608.3,3.83391]
[1724090594784,2.3735,2608.8,2608.6,3.83344]
[1724090594989,2.3735,2608.8,2607.8,3.83463]
[1724090594990,2.3735,2608.8,2608.4,3.83362]
[1724090595298,2.3735,2608.8,2608.4,3.83376]
[1724090595458,6.20678,2608.8,2608.3,3.83389]
[1724090595658,4.111477,2608.8,2608.4,7.66737]
[1724090595855,2.3735,2608.8,2608.5,3.83361]
[1724090596094,6.20668,2608.8,2608.4,3.83375]
[1724090596297,2.3735,2608.8,2608.4,3.83375]
[1724090596595,2.3735,2608.8,2608.4,7.66744]
[1724090596793,2.3735,2608.8,2608.4,3.83369]
[1724090597009,2.3735,2608.8,2608.4,3.83374]
[1724090598191,6.20675,2608.8,2608.3,3.83385]
[1724090598398,4.221978,2608.7,2608.0,3.83424]
[1724090598590,2.484,2608.7,2608.5,3.83361]
[1724090599669,7.34,2608.9,2608.2,2.4639]
[1724090600016,14.644,2609.1,2608.7,3.83326]
[1724090600716,14.644,2609.1,2608.7,3.83325]
[1724090602016,14.644,2609.1,2608.7,3.83323]
[1724090602218,3.8324,2609.4,2608.2,5.4639]
[1724090602219,9.8343,2609.4,2609.1,3.83273]
[1724090602427,9.8343,2609.4,2609.3,3.83244]
[1724090602428,2.4943,2609.4,2609.3,3.83244]
[1724090602928,14.6543,2609.7,2609.3,3.83244]
[1724090603131,18.48617,2609.7,2609.3,3.83244]
[1724090603454,14.6543,2609.7,2609.3,3.83244]
[1724090603589,2.4943,2609.7,2609.4,3.83219]
[1724090603785,2.4943,2609.7,2609.5,3.83205]
[1724090604026,6.32622,2609.7,2609.2,3.83247]
[1724090604230,6.32622,2609.7,2609.2,7.66499]
[1724090604728,6.32622,2609.7,2609.3,3.83243]
[1724090605527,3.83202,2609.6,2609.2,3.83257]
[1724090605837,2.391,2609.5,2609.0,3.83276]
[1724090606042,2.391,2609.5,2609.3,3.83237]
[1724090606539,2.391,2609.5,2609.3,7.6647]
[1724090606849,6.20681,2609.8,2609.3,7.66469]
[1724090607054,2.375,2609.8,2609.5,3.83208]
[1724090607213,2.375,2609.8,2609.6,3.83191]
[1724090607403,2.375,2609.8,2609.5,0.383208]
[1724090607609,2.375,2609.8,2609.5,3.83214]
[1724090609942,2.375,2609.8,2609.4,3.83229]
[1724090610443,6.20675,2609.8,2609.4,3.83229]
[1724090610623,2.375,2609.8,2609.4,7.66452]
[1724090610828,2.375,2609.8,2609.4,7.66445]
[1724090611068,2.375,2609.8,2609.5,3.83211]
[1724090611214,2.375,2609.8,2609.1,3.83272]
[1724090611215,2.375,2609.8,2609.6,3.832]
[1724090611756,2.375,2609.8,2609.6,3.83192]
[1724090611959,2.375,2609.8,2609.6,7.66386]
[1724090612108,7.34,2610.1,2609.7,3.8318]
[1724090612308,2.4691,2610.2,2609.8,3.83162]
[1724090612555,6.30033,2610.2,2609.7,3.8318]
[1724090612753,3.78136,2610.1,2609.6,3.83199]
[1724090612965,3.83143,2610.0,2609.6,3.83199]
[1724090613110,3.83143,2610.0,2609.6,4.598393]
[1724090613315,6.30033,2610.2,2609.6,4.598393]
[1724090613577,3.83134,2610.1,2609.6,8.430323]
[1724090613860,3.83134,2610.1,2609.6,4.598333]
[1724090614398,7.34,2610.4,2609.1,5.4133]
[1724090614399,3.83208,2609.6,2609.1,3.83266]
[1724090614608,2.4691,2609.5,2609.1,3.83266]
[1724090614752,2.4691,2609.5,2608.9,3.83293]
[1724090614753,3.83238,2609.4,2608.9,3.83293]
[1724090615101,3.83247,2609.3,2608.9,0.383293]
[1724090615284,3.83247,2609.3,2608.6,3.83338]
[1724090615443,3.959,2609.8,2608.2,2.4133]
[1724090615444,2.4691,2609.1,2608.2,2.4133]
[1724090615648,2.4691,2609.1,2608.6,3.83339]
[1724090616146,3.83241,2609.4,2608.9,3.83297]
[1724090616385,3.83241,2609.4,2608.7,7.66646]
[1724090616386,6.30156,2609.3,2608.7,7.66646]
[1724090616563,6.30156,2609.3,2608.8,0.766646]
[1724090616778,6.30156,2609.3,2608.7,3.83323]
[1724090617193,3.8326,2609.2,2608.7,3.83323]
[1724090617546,2.4691,2608.9,2608.4,3.83375]
[1724090617864,2.4691,2608.9,2608.5,3.83358]
[1724090618409,2.4691,2608.9,2608.5,7.66712]
[1724090618608,2.4691,2608.9,2608.7,3.83329]
[1724090618962,2.4691,2608.9,2608.7,3.83323]
[1724090619986,3.83262,2609.2,2608.7,3.83323]
[1724090619987,2.4691,2609.2,2608.7,3.83323]
[1724090620294,2.4691,2609.2,2608.9,3.83293]
[1724090620465,2.4691,2609.2,2608.7,3.83319]
[1724090620663,2.4691,2609.2,2608.8,3.83314]
[1724090620976,2.4691,2609.2,2608.8,4.599773]
[1724090621556,2.4691,2609.2,2609.0,3.8328]
[1724090621795,2.4691,2609.2,2608.9,3.83292]
[1724090622187,2.4691,2609.2,2608.8,0.766633]
[1724090622383,2.4691,2609.2,2608.8,4.599693]
[1724090622719,2.4691,2609.2,2608.9,0.8432883]
[1724090622917,2.4691,2609.2,2608.9,4.6762883]
[1724090623465,2.4691,2609.2,2609.0,3.8328]
[1724090624097,2.4691,2609.2,2608.9,4.6762883]
[1724090624098,2.4691,2609.2,2609.1,3.83273]
[1724090624417,7.34,2609.5,2609.1,3.83273]
[1724090624418,7.34,2609.5,2609.3,3.8324]
[1724090624628,7.34,2609.5,2608.9,0.8432883]
[1724090624924,11.17225,2609.5,2608.9,3.8329]
[1724090625157,11.17225,2609.5,2609.0,7.66572]
[1724090625682,11.17223,2609.5,2609.0,3.83286]
[1724090625871,3.8323,2609.4,2609.0,3.83286]
[1724090626089,7.34,2609.5,2609.0,3.83286]
[1724090626290,11.17216,2609.5,2609.0,4.599452]
[1724090626827,11.17216,2609.5,2609.0,4.599402]
[1724090627220,11.17216,2609.5,2609.0,8.432202]